bitfinex-derivatives/quotes_BTCF0:USTF0_20241023
["timestamp","ask_amount","ask_price","bid_price","bid_amount"]
[1729642569237,0.50613301,67219.0,67218.0,0.45130826]
[1729642569429,0.50613301,67219.0,67218.0,0.3608]
[1729642573239,0.50613301,67219.0,67218.0,0.4708]
[1729642574041,0.50613301,67219.0,67218.0,0.63568066]
[1729642574542,0.50613301,67219.0,67218.0,0.5613432]
[1729642575446,0.50613301,67219.0,67218.0,0.2005432]
[1729642576532,0.61613301,67219.0,67218.0,0.0905432]
[1729642576730,0.61613301,67219.0,67213.0,0.04598729]
[1729642576731,0.505538,67214.0,67213.0,0.04598729]
[1729642577037,0.55264001,67214.0,67211.0,0.11]
[1729642577229,0.00060001,67212.0,67211.0,0.11]
[1729642577428,0.55264001,67212.0,67211.0,0.11]
[1729642578030,0.55264001,67212.0,67211.0,0.05954]
[1729642578237,0.55264001,67212.0,67211.0,0.16954]
[1729642579347,0.55264001,67212.0,67211.0,0.24389778]
[1729642579938,0.44660001,67212.0,67211.0,0.35389778]
[1729642580132,0.44660001,67212.0,67211.0,0.24389778]
[1729642580646,0.44660001,67212.0,67211.0,0.16954]
[1729642580946,0.44660001,67212.0,67206.0,0.3608]
[1729642581139,0.44660001,67212.0,67207.0,0.10728213]
[1729642581337,0.44660001,67212.0,67211.0,0.11]
[1729642582038,0.44660001,67212.0,67206.0,0.420344]
[1729642582039,0.44660001,67212.0,67206.0,0.3608]
[1729642582245,0.00060001,67207.0,67206.0,0.3608]
[1729642582435,0.00060001,67207.0,67206.0,0.4708]
[1729642584631,0.50614401,67207.0,67206.0,0.3608]
[1729642588646,0.61218401,67207.0,67206.0,0.3608]
[1729642589244,0.61218401,67207.0,67206.0,0.4708]
[1729642590352,0.61218401,67207.0,67206.0,0.3608]
[1729642590644,0.61218401,67207.0,67206.0,0.4708]
[1729642593751,0.55264001,67207.0,67206.0,0.4708]
[1729642593954,0.44660001,67207.0,67206.0,0.4708]
[1729642594350,0.55268001,67207.0,67206.0,0.54511637]
[1729642594656,0.44660001,67207.0,67206.0,0.63533934]
[1729642595546,0.44660001,67207.0,67206.0,0.54511637]
[1729642595846,0.44660001,67207.0,67206.0,0.56103964]
[1729642596347,0.44660001,67207.0,67206.0,0.62058464]
[1729642596946,0.00060001,67207.0,67206.0,0.62058464]
[1729642597762,0.00060001,67207.0,67206.0,0.6469729]
[1729642597948,0.10588,67211.0,67209.0,0.169541]
[1729642598147,0.446,67210.0,67209.0,0.24386442]
[1729642598444,0.446,67210.0,67209.0,0.33401996]
[1729642598856,0.10648001,67212.0,67209.0,0.33401996]
[1729642599062,0.446,67211.0,67209.0,0.24386442]
[1729642599246,0.00060001,67212.0,67210.0,0.11]
[1729642599459,0.00060001,67214.0,67211.0,0.09012762]
[1729642599650,0.00060001,67214.0,67209.0,0.11]
[1729642599651,0.00060001,67214.0,67213.0,0.18432859]
[1729642599850,0.00060001,67214.0,67213.0,0.20012762]
[1729642600263,0.00060001,67219.0,67213.0,0.62032329]
[1729642600451,0.446,67218.0,67214.0,0.29447464]
[1729642600650,0.00060001,67219.0,67214.0,0.29447464]
[1729642600651,0.44660001,67219.0,67218.0,0.169534]
[1729642600861,0.44660001,67219.0,67218.0,0.25951829]
[1729642602164,0.44660001,67219.0,67218.0,0.28570469]
[1729642603951,0.00060001,67219.0,67218.0,0.28570469]
[1729642604459,0.00060001,67225.0,67218.0,0.41048028]
[1729642604664,0.00060001,67225.0,67224.0,0.22]
[1729642604849,0.00060001,67225.0,67224.0,0.29430577]
[1729642605055,0.00060001,67225.0,67224.0,0.35383477]
[1729642605562,0.00060001,67225.0,67224.0,0.279529]
[1729642605859,0.00060001,67225.0,67224.0,0.44329434]
[1729642606362,0.00060001,67225.0,67224.0,0.4433284]
[1729642606553,0.00060001,67230.0,67229.0,0.059524]
[1729642606863,0.08668287,67243.0,67232.0,0.059522]
[1729642607064,0.00060001,67243.0,67238.0,0.059516]
[1729642607261,0.44660001,67239.0,67238.0,0.640316]
[1729642607862,0.00060001,67239.0,67238.0,0.420316]
[1729642608372,0.00060001,67239.0,67238.0,0.640316]
[1729642609361,0.00060001,67239.0,67238.0,0.69959338]
[1729642609566,0.00060001,67239.0,67238.0,0.47959338]
[1729642609870,0.00060001,67239.0,67238.0,0.69959338]
[1729642610369,0.00060001,67239.0,67238.0,0.420316]
[1729642610567,0.00060001,67239.0,67238.0,0.590316]
[1729642611069,0.44660001,67239.0,67238.0,0.5308]
[1729642612757,0.44660001,67239.0,67238.0,0.3608]
[1729642612969,0.44660001,67239.0,67238.0,0.5308]
[1729642614075,0.50611601,67239.0,67238.0,0.3608]
[1729642614372,0.67611601,67239.0,67238.0,0.3608]
[1729642614866,0.50611601,67239.0,67238.0,0.3608]
[1729642615867,0.44660001,67239.0,67238.0,0.3608]
[1729642619775,0.44660001,67239.0,67231.0,0.40523306]
[1729642619776,0.44660001,67239.0,67235.0,0.17]
[1729642619974,0.00060001,67239.0,67235.0,0.17]
[1729642620170,0.44660001,67236.0,67234.0,0.3608]
[1729642620489,0.44660001,67235.0,67234.0,0.3608]
[1729642622372,0.44660001,67235.0,67234.0,0.40523306]
[1729642622577,0.44660001,67235.0,67234.0,0.46475306]
[1729642622880,0.44660001,67235.0,67234.0,0.42032]
[1729642623384,0.00060001,67235.0,67234.0,0.42032]
[1729642623981,0.00060001,67235.0,67234.0,0.46473918]
[1729642624274,0.44660001,67235.0,67234.0,0.3608]
[1729642624577,0.44660001,67235.0,67234.0,0.40521918]
[1729642624781,0.44660001,67235.0,67234.0,0.3608]
[1729642625371,0.44660001,67235.0,67234.0,0.40521918]
[1729642626383,0.44660001,67235.0,67234.0,0.3608]
[1729642627678,0.44660001,67235.0,67234.0,0.5308]
[1729642628382,0.44660001,67235.0,67234.0,0.59007738]
[1729642629469,0.44660001,67235.0,67234.0,0.5308]
[1729642632385,0.44660001,67235.0,67234.0,0.43505765]
[1729642632688,0.55660001,67235.0,67234.0,0.43505765]
[1729642633381,0.55660001,67235.0,67234.0,0.50881162]
[1729642633382,0.44660001,67235.0,67234.0,0.50881162]
[1729642633884,0.00060001,67239.0,67234.0,0.44929162]
[1729642634073,0.00060001,67244.0,67238.0,0.11]
[1729642634276,0.00060001,67244.0,67242.0,0.530313]
[1729642634477,0.00060001,67244.0,67242.0,0.25800462]
[1729642634692,0.11060001,67243.0,67242.0,0.27020462]
[1729642635388,0.00060001,67243.0,67242.0,0.27027732]
[1729642635590,0.00060001,67243.0,67242.0,0.38027732]
[1729642636392,0.00060001,67243.0,67242.0,0.46946767]
[1729642637384,0.00060001,67243.0,67242.0,0.38027732]
[1729642637983,0.00060001,67243.0,67242.0,0.20857732]
[1729642638390,0.00060001,67243.0,67242.0,0.14906432]
[1729642639292,0.00060001,67243.0,67242.0,0.20857732]
[1729642639476,0.00060001,67243.0,67242.0,0.14906432]
[1729642640686,0.44660001,67243.0,67242.0,0.14906432]
[1729642640900,0.44660001,67243.0,67242.0,0.16291074]
[1729642642081,0.44660001,67243.0,67242.0,0.07434642]
[1729642642483,0.44660001,67243.0,67240.0,0.07434642]
[1729642642484,0.80740001,67243.0,67240.0,0.07434642]
[1729642642796,0.80740001,67243.0,67239.0,0.07434642]
[1729642642797,0.06011401,67241.0,67239.0,0.07434642]
[1729642642989,0.059516,67239.0,67238.0,0.07434642]
[1729642643185,0.06011601,67239.0,67238.0,0.07434642]
[1729642643383,0.50611601,67239.0,67238.0,0.07434642]
[1729642644601,0.44660001,67239.0,67238.0,0.17]
[1729642644789,0.00060001,67240.0,67238.0,0.25951018]
[1729642645098,0.00060001,67243.0,67242.0,0.059513]
[1729642645294,0.00060001,67243.0,67242.0,0.31902318]
[1729642647595,0.44660001,67243.0,67242.0,0.31902318]
[1729642648901,0.00060001,67243.0,67242.0,0.31902318]
[1729642649099,0.00060001,67251.0,67242.0,0.31902318]
[1729642649100,0.00060001,67251.0,67250.0,0.059506]
[1729642649299,0.44660001,67251.0,67250.0,0.399506]
[1729642649602,0.44660001,67251.0,67250.0,0.56277092]
[1729642649800,0.11660001,67251.0,67250.0,0.4883846]
[1729642650100,0.420292,67266.0,67259.0,0.059497]
[1729642650303,0.420292,67266.0,67265.0,0.17]
[1729642650304,0.3608,67266.0,67265.0,0.17]
[1729642650714,0.47740001,67266.0,67265.0,0.17]
[1729642650915,0.47740001,67266.0,67265.0,0.2343]
[1729642653112,0.3608,67266.0,67265.0,0.2343]
[1729642653310,0.47740001,67266.0,67265.0,0.2343]
[1729642654316,0.47740001,67266.0,67265.0,0.27878632]
[1729642654509,0.47740001,67266.0,67265.0,0.33827932]
[1729642655217,0.47740001,67266.0,67265.0,0.293793]
[1729642657207,0.08611276,67282.0,67278.0,0.059481]
[1729642657416,0.08611276,67282.0,67281.0,0.17]
[1729642658120,0.059478,67282.0,67281.0,0.17]
[1729642658323,0.059474,67286.0,67283.0,0.059476]
[1729642658518,0.059471,67290.0,67285.0,0.229475]
[1729642658718,0.059471,67290.0,67289.0,0.17]
[1729642658719,0.05947,67290.0,67289.0,0.17]
[1729642660109,0.10552,67297.0,67289.0,0.17]
[1729642660110,0.059464,67297.0,67289.0,0.17]
[1729642660314,0.059464,67297.0,67296.0,0.059465]
[1729642660619,0.059465,67296.0,67295.0,0.17]
[1729642660824,0.059865,67296.0,67295.0,0.17]
[1729642661618,1.2162,67296.0,67278.0,0.04444495]
[1729642661811,1.2162,67296.0,67275.0,0.00222942]
[1729642661812,0.059483,67276.0,67275.0,0.17222942]
[1729642662014,0.0004,67279.0,67275.0,0.17222942]
[1729642662313,0.059483,67276.0,67275.0,0.17222942]
[1729642662921,0.0634,67278.0,67275.0,0.17222942]
[1729642665322,0.122882,67278.0,67275.0,0.17222942]
[1729642665713,0.059482,67278.0,67275.0,0.17222942]
[1729642666429,0.0004,67279.0,67275.0,0.17222942]
[1729642666629,0.0004,67279.0,67278.0,0.17]
[1729642669917,0.05988,67279.0,67275.0,0.17222942]
[1729642670122,0.0004,67276.0,67275.0,0.17222942]
[1729642675232,0.0004,67276.0,67275.0,0.23171342]
[1729642680525,0.0004,67279.0,67278.0,0.059481]
[1729642680732,0.0004,67279.0,67278.0,0.28884892]
[1729642681029,0.10548,67290.0,67278.0,0.675401]
[1729642681231,0.059466,67295.0,67288.0,0.5308]
[1729642681434,0.059466,67295.0,67294.0,0.17]
[1729642681624,0.0004,67296.0,67291.0,0.17]
[1729642681823,0.0004,67296.0,67294.0,0.17]
[1729642682626,0.0004,67296.0,67291.0,0.17]
[1729642682627,0.059469,67292.0,67291.0,0.17]
[1729642682828,0.059869,67292.0,67291.0,0.17]
[1729642683023,0.059474,67286.0,67285.0,0.3608]
[1729642683223,0.0004,67286.0,67279.0,0.04451486]
[1729642683428,0.0004,67280.0,67278.0,0.04451486]
[1729642683627,0.0004,67280.0,67276.0,0.3608]
[1729642683628,0.059481,67278.0,67277.0,0.04451486]
[1729642683839,0.059881,67278.0,67277.0,0.04451486]
[1729642684134,0.059881,67278.0,67277.0,0.17]
[1729642686325,0.059881,67278.0,67277.0,0.22936336]
[1729642690526,0.059881,67278.0,67277.0,0.17]
[1729642695546,0.0004,67278.0,67276.0,0.42024458]
[1729642695740,0.0004,67278.0,67276.0,0.3608]
[1729642695741,0.0004,67277.0,67276.0,0.3608]
[1729642696453,0.059882,67277.0,67276.0,0.3608]
[1729642699148,0.059882,67277.0,67276.0,0.5308]
[1729642700347,0.0004,67277.0,67276.0,0.5308]
[1729642702151,0.0004,67277.0,67276.0,0.590283]
[1729642703053,0.420276,67284.0,67278.0,0.059481]
[1729642703342,0.420276,67284.0,67283.0,0.17]
[1729642703549,0.420276,67284.0,67283.0,0.21457834]
[1729642704441,0.059476,67284.0,67283.0,0.17]
[1729642705152,0.059476,67284.0,67283.0,0.22943779]
[1729642706642,0.0004,67286.0,67285.0,0.059475]
[1729642706845,0.0004,67292.0,67291.0,0.05947]
[1729642707151,0.0004,67292.0,67291.0,0.42027]
[1729642707553,0.0004,67292.0,67291.0,0.47966112]
[1729642707853,0.0004,67292.0,67291.0,0.42027]
[1729642708549,0.0004,67292.0,67291.0,0.4796426]
[1729642709958,0.059865,67296.0,67291.0,0.4796426]
[1729642710153,0.059865,67296.0,67295.0,0.34]
[1729642710454,0.059865,67296.0,67295.0,0.17]
[1729642710655,0.059865,67296.0,67295.0,0.34]
[1729642711548,0.059865,67296.0,67295.0,0.21449879]
[1729642711845,0.059865,67296.0,67295.0,0.17]
[1729642712050,0.059865,67296.0,67295.0,0.34]
[1729642712256,0.059865,67296.0,67295.0,0.17]
[1729642712550,0.059865,67296.0,67295.0,0.21449283]
[1729642714559,0.059865,67296.0,67295.0,0.17]
[1729642718069,0.0004,67296.0,67295.0,0.17]
[1729642722661,0.0004,67296.0,67291.0,0.3608]
[1729642722864,0.059869,67292.0,67291.0,0.17]
[1729642724467,0.05947,67291.0,67290.0,0.0592]
[1729642724668,0.05947,67291.0,67290.0,0.2292]
[1729642724969,0.05987,67291.0,67290.0,0.2292]
[1729642727970,0.05987,67291.0,67290.0,0.17]
[1729642729578,0.0004,67291.0,67287.0,0.2293726]
[1729642729765,0.0004,67288.0,67287.0,0.17]
[1729642731465,0.0004,67288.0,67287.0,0.2293726]
[1729642733670,0.0004,67288.0,67287.0,0.17]
[1729642740278,0.0004,67288.0,67287.0,0.11]
[1729642742377,0.0004,67288.0,67285.0,0.43507279]
[1729642742378,0.0004,67288.0,67285.0,0.3608]
[1729642742580,0.059874,67286.0,67282.0,0.13537279]
[1729642742775,0.059874,67286.0,67285.0,0.11]
[1729642744382,0.0004,67286.0,67282.0,0.0611]
[1729642744585,0.0004,67286.0,67281.0,0.19387279]
[1729642744586,0.0004,67283.0,67281.0,0.1689]
[1729642744790,0.059878,67282.0,67281.0,0.11]
[1729642747592,0.059479,67280.0,67279.0,0.07427279]
[1729642747779,0.059879,67280.0,67279.0,0.11]
[1729642748290,0.059879,67280.0,67279.0,0.17]
[1729642748584,0.0004,67280.0,67279.0,0.17]
[1729642749088,0.059879,67280.0,67279.0,0.17]
[1729642750596,0.0004,67280.0,67279.0,0.17]
[1729642754294,0.0004,67280.0,67279.0,0.5308]
[1729642757087,0.0004,67280.0,67279.0,0.60507279]
[1729642758292,0.0004,67280.0,67279.0,0.69311647]
[1729642758796,0.0004,67280.0,67279.0,0.69311652]
[1729642762102,0.0004,67280.0,67279.0,0.33231652]
[1729642762492,0.0004,67280.0,67279.0,0.69314287]
[1729642762690,0.0004,67280.0,67279.0,0.52314287]
[1729642762900,0.0004,67280.0,67279.0,0.69314287]
[1729642763596,0.0004,67280.0,67279.0,0.5308]
[1729642763796,0.0004,67280.0,67279.0,0.60510266]
[1729642764004,0.0004,67280.0,67279.0,0.5308]
[1729642764703,0.0004,67280.0,67279.0,0.60510266]
[1729642765092,0.0004,67280.0,67279.0,0.24430266]
[1729642765291,0.0004,67280.0,67279.0,0.60510266]
[1729642765798,0.0004,67280.0,67279.0,0.69319244]
[1729642766191,0.059879,67280.0,67279.0,0.3608]
[1729642766486,0.059879,67280.0,67279.0,0.60510266]
[1729642766691,0.059879,67280.0,67279.0,0.69321191]
[1729642767799,0.059879,67280.0,67279.0,0.69323098]
[1729642768096,0.059879,67280.0,67279.0,0.69334041]
[1729642768299,0.059879,67280.0,67279.0,0.55901868]
[1729642772190,0.059879,67280.0,67279.0,0.19821868]
[1729642772405,0.059879,67280.0,67279.0,0.55901868]
[1729642772695,0.059879,67280.0,67279.0,0.55910016]
[1729642773002,0.059879,67280.0,67279.0,0.19830016]
[1729642773191,0.059879,67280.0,67279.0,0.55910016]
[1729642773999,0.059879,67280.0,67279.0,0.19830016]
[1729642774309,0.059879,67280.0,67279.0,0.55910016]
[1729642775206,0.059879,67280.0,67279.0,0.19830016]
[1729642775505,0.059879,67280.0,67279.0,0.55910016]
[1729642775702,0.059879,67280.0,67279.0,0.19830016]
[1729642776407,0.059879,67280.0,67279.0,0.55910016]
[1729642777198,0.059879,67280.0,67279.0,0.19830016]
[1729642777403,0.059879,67280.0,67279.0,0.55910016]
[1729642777904,0.059879,67280.0,67279.0,0.19830016]
[1729642778099,0.059879,67280.0,67279.0,0.55910016]
[1729642779002,0.059879,67280.0,67279.0,0.29830016]
[1729642779198,0.059879,67280.0,67279.0,0.65910016]
[1729642779605,0.059879,67280.0,67279.0,0.29830016]
[1729642779998,0.059879,67280.0,67279.0,0.65910016]
[1729642780198,0.059879,67280.0,67279.0,0.29830016]
[1729642780401,0.059879,67280.0,67279.0,0.65910016]
[1729642781300,0.059879,67280.0,67279.0,0.54910016]
[1729642781818,0.059879,67280.0,67279.0,0.62348224]
[1729642782404,0.059879,67280.0,67279.0,0.62358248]
[1729642782813,0.169879,67280.0,67279.0,0.53518208]
[1729642783109,1.430639,67280.0,67277.0,0.0446318]
[1729642783307,0.5812,67278.0,67266.0,0.05950866]
[1729642783603,0.059492,67266.0,67265.0,0.0022295]
[1729642783805,0.164732,67266.0,67265.0,0.0022295]
[1729642784013,0.610732,67266.0,67265.0,0.0022295]
[1729642785609,0.63775106,67266.0,67265.0,0.0022295]
[1729642787206,0.059499,67258.0,67257.0,0.4043]
[1729642787411,0.059899,67258.0,67257.0,0.4043]
[1729642798422,0.10528,67266.0,67259.0,0.059498]
[1729642798725,0.164772,67266.0,67265.0,0.11]
[1729642801025,0.19146393,67266.0,67265.0,0.11]
[1729642804117,0.19146393,67266.0,67257.0,0.4043]
[1729642804118,0.059499,67258.0,67257.0,0.3608]
[1729642804334,0.169899,67258.0,67257.0,0.3608]
[1729642805536,0.059501,67255.0,67254.0,0.078]
[1729642805724,0.274781,67255.0,67254.0,0.042]
[1729642805920,0.720861,67255.0,67254.0,0.042]
[1729642811036,0.059509,67246.0,67245.0,0.0356]
[1729642811233,0.169909,67246.0,67245.0,0.0356]
[1729642812250,0.616029,67246.0,67245.0,0.0356]
[1729642812455,0.05951,67245.0,67244.0,0.0387]
[1729642812650,0.61071,67245.0,67244.0,0.0387]
[1729642813155,0.61071,67245.0,67239.0,0.0022306]
[1729642813156,0.059515,67240.0,67239.0,0.0022306]
[1729642813358,0.530715,67240.0,67239.0,0.0022306]
[1729642814358,0.590715,67240.0,67239.0,0.0022306]
[1729642817055,0.590715,67240.0,67235.0,0.0378]
[1729642817056,0.059531,67221.0,67219.0,0.05950866]
[1729642817261,0.059531,67221.0,67220.0,0.0706]
[1729642817560,0.164251,67221.0,67220.0,0.0706]
[1729642819666,0.19085994,67221.0,67220.0,0.0706]
[1729642822261,0.059544,67207.0,67206.0,0.0022318]
[1729642822468,0.059944,67207.0,67206.0,0.0022318]
[1729642823065,0.0004,67207.0,67206.0,0.1722318]
[1729642823764,0.0004,67207.0,67206.0,0.0022318]
[1729642824263,0.059944,67207.0,67206.0,0.0022318]
[1729642824470,0.05990345,67207.0,67206.0,0.0022318]
[1729642824861,0.059545,67206.0,67205.0,0.11]
[1729642825360,0.059945,67206.0,67205.0,0.11]
[1729642825558,0.164665,67206.0,67205.0,0.11]
[1729642826971,0.164665,67206.0,67205.0,0.28]
[1729642827165,0.164665,67206.0,67205.0,0.11]
[1729642833768,0.059945,67206.0,67205.0,0.11]
[1729642833976,0.164705,67206.0,67205.0,0.11]
[1729642841574,0.059945,67206.0,67205.0,0.11]
[1729642841882,0.0468,67206.0,67205.0,0.169546]
[1729642842475,0.0468,67206.0,67200.0,0.20340001]
[1729642842476,0.059549,67201.0,67200.0,0.20340001]
[1729642842674,0.590349,67201.0,67200.0,0.20340001]
[1729642842870,1.141789,67201.0,67200.0,0.20340001]
[1729642844279,0.695349,67201.0,67200.0,0.20340001]
[1729642845978,0.72170248,67201.0,67200.0,0.20340001]
[1729642849080,0.72170248,67201.0,67200.0,0.12359501]
[1729642849081,1.16814248,67201.0,67200.0,0.12359501]
[1729642849279,0.72170248,67201.0,67200.0,0.12359501]
[1729642852680,0.36090248,67201.0,67200.0,0.12359501]
[1729642852875,1.08250248,67201.0,67200.0,0.12359501]
[1729642856387,0.80790248,67201.0,67200.0,0.12359501]
[1729642856586,1.08250248,67201.0,67200.0,0.12359501]
[1729642857481,0.80790248,67201.0,67200.0,0.12359501]
[1729642857687,0.0004,67201.0,67200.0,0.35314501]
[1729642857987,0.02773895,67206.0,67205.0,0.059546]
[1729642858682,0.059548,67203.0,67200.0,0.48439501]
[1729642858876,0.17,67204.0,67202.0,0.059548]
[1729642859091,0.1046,67204.0,67203.0,0.059547]
[1729642859791,0.0464,67204.0,67203.0,0.059547]
[1729642859983,0.1046,67205.0,67203.0,0.17]
[1729642860187,0.059545,67206.0,67205.0,0.059546]
[1729642863192,0.10495945,67207.0,67206.0,0.059545]
[1729642864281,0.00035945,67207.0,67206.0,0.059545]
[1729642864483,0.420341,67210.0,67209.0,0.059542]
[1729642864685,0.420341,67210.0,67209.0,0.229542]
[1729642865700,0.1046,67215.0,67209.0,0.61636]
[1729642865888,0.77792,67224.0,67212.0,0.17]
[1729642865889,0.059534,67219.0,67212.0,0.17]
[1729642866094,0.059534,67219.0,67214.0,0.17]
[1729642866095,0.02634316,67219.0,67214.0,0.17]
[1729642866296,0.059535,67217.0,67214.0,0.17]
[1729642869390,0.059535,67217.0,67212.0,0.059539]
[1729642869696,0.0004,67213.0,67212.0,0.420339]
[1729642869992,0.05953,67223.0,67218.0,0.059534]
[1729642870195,0.05953,67223.0,67219.0,0.2055]
[1729642870584,0.3874909,67224.0,67219.0,0.2055]
[1729642870787,0.3608,67224.0,67220.0,0.059532]
[1729642871191,0.42033,67224.0,67220.0,0.059532]
[1729642871394,0.3608,67224.0,67223.0,0.17]
[1729642871597,0.44628,67223.0,67205.0,0.42030866]
[1729642871791,0.229945,67206.0,67205.0,0.3608]
[1729642871985,0.059945,67206.0,67205.0,0.3608]
[1729642876095,0.08666302,67206.0,67205.0,0.3608]
[1729642876598,0.02711802,67206.0,67200.0,0.12582699]
[1729642876801,0.0004,67201.0,67200.0,0.12582699]
[1729642877199,0.059949,67201.0,67200.0,0.12582699]
[1729642880809,0.0004,67201.0,67200.0,0.12582699]
[1729642881006,0.059949,67201.0,67200.0,0.12582699]
[1729642881896,0.229949,67201.0,67200.0,0.12582699]
[1729642882999,0.229949,67201.0,67200.0,0.12359501]
[1729642883203,0.229949,67201.0,67200.0,0.06559501]
[1729642885610,0.676389,67201.0,67200.0,0.00759501]
[1729642888703,0.229949,67201.0,67200.0,0.00759501]
[1729642889704,0.334389,67201.0,67200.0,0.00759501]
[1729642890104,0.229949,67201.0,67200.0,0.00759501]
[1729642890304,0.164389,67201.0,67200.0,0.06714501]
[1729642890812,0.334389,67201.0,67200.0,0.06714501]
[1729642891308,0.27484,67201.0,67200.0,0.00759501]
[1729642891511,0.05955,67200.0,67188.0,0.05950866]
[1729642891809,0.059562,67187.0,67186.0,0.059562]
[1729642892012,0.229562,67187.0,67186.0,0.059562]
[1729642892207,0.229962,67187.0,67186.0,0.059562]
[1729642892813,0.229962,67187.0,67184.0,0.00039]
[1729642893015,0.0004,67185.0,67184.0,0.00039]
[1729642893213,0.059963,67185.0,67184.0,0.00039]
[1729642895308,0.0004,67189.0,67188.0,0.059561]
[1729642895726,0.0004,67189.0,67188.0,0.506081]
[1729642896218,0.0004,67189.0,67188.0,0.676081]
[1729642896407,0.10444,67196.0,67188.0,0.80732]
[1729642896609,0.10444,67196.0,67195.0,0.420355]
[1729642897708,0.0004,67201.0,67195.0,0.420355]
[1729642897709,0.059552,67198.0,67195.0,0.420355]
[1729642897911,0.163992,67198.0,67195.0,0.420355]
[1729642898620,0.163992,67198.0,67196.0,0.0386]
[1729642899322,0.10432,67197.0,67196.0,0.0386]
[1729642899518,0.10432,67197.0,67196.0,0.0752]
[1729642900624,0.163873,67197.0,67196.0,0.0752]
[1729642901420,0.163873,67197.0,67196.0,0.2452]
[1729642901923,0.0004,67201.0,67196.0,0.2452]
[1729642902118,0.0004,67201.0,67200.0,0.17]
[1729642902321,0.10472,67201.0,67200.0,0.17]
[1729642902631,0.164269,67201.0,67200.0,0.17]
[1729642904217,0.164269,67201.0,67200.0,0.21458754]
[1729642904414,0.164269,67201.0,67200.0,0.17]
[1729642904928,0.059552,67198.0,67197.0,0.05933592]
[1729642905520,0.059952,67198.0,67197.0,0.05933592]
[1729642907829,0.059952,67198.0,67196.0,0.2452]
[1729642907830,0.059553,67197.0,67196.0,0.2452]
[1729642908028,0.059953,67197.0,67196.0,0.2452]
[1729642911426,0.059953,67197.0,67196.0,0.69164]
[1729642912229,0.059953,67197.0,67196.0,0.2452]
[1729642912929,0.059953,67197.0,67196.0,0.0752]
[1729642913234,0.059953,67197.0,67196.0,0.09808886]
[1729642913732,0.059953,67197.0,67196.0,0.0386]
[1729642913922,0.059554,67196.0,67195.0,0.42028886]
[1729642914125,0.059954,67196.0,67195.0,0.3608]
[1729642916628,0.229954,67196.0,67195.0,0.3608]
[1729642917829,0.25710489,67196.0,67195.0,0.3608]
[1729642918126,0.19755089,67196.0,67194.0,0.04463028]
[1729642918332,0.19755089,67196.0,67193.0,0.04463028]
[1729642918542,0.19755089,67196.0,67192.0,0.04463028]
[1729642918543,0.1704,67194.0,67192.0,0.04463028]
[1729642918737,0.059956,67193.0,67192.0,0.04463028]
[1729642918938,0.059956,67193.0,67190.0,0.05948886]
[1729642919240,0.059956,67193.0,67189.0,0.05948886]
[1729642919241,0.059559,67190.0,67189.0,0.05948886]
[1729642919442,0.05956,67189.0,67188.0,0.42028886]
[1729642919632,0.16388,67189.0,67188.0,0.05948886]
[1729642919937,0.16388,67189.0,67186.0,0.05948886]
[1729642919938,0.10472,67189.0,67186.0,0.05948886]
[1729642920140,0.059962,67187.0,67186.0,0.05948886]
[1729642920941,0.059563,67186.0,67185.0,0.05948886]
[1729642921134,0.059963,67186.0,67185.0,0.05950128]
[1729642922129,0.059963,67186.0,67184.0,0.05989128]
[1729642922130,0.059563,67185.0,67184.0,0.05989128]
[1729642922337,0.059963,67185.0,67184.0,0.05989128]
[1729642922543,0.059963,67185.0,67184.0,0.00039]
[1729642924540,0.229963,67185.0,67184.0,0.00039]
[1729642925448,0.229963,67185.0,67184.0,0.04499433]
[1729642925844,0.229963,67185.0,67184.0,0.00039]
[1729642927449,0.059963,67185.0,67184.0,0.21499433]
[1729642927745,0.059963,67185.0,67184.0,0.17039]
[1729642927746,0.0004,67185.0,67184.0,0.17039]
[1729642927936,0.0004,67185.0,67184.0,0.266354]
[1729642928542,0.0004,67185.0,67184.0,0.03679]
[1729642928757,0.0004,67185.0,67184.0,0.26623576]
[1729642934844,0.0004,67185.0,67184.0,0.20679]
[1729642935660,0.0004,67185.0,67184.0,0.266354]
[1729642935854,0.0004,67185.0,67184.0,0.627154]
[1729642936252,0.0004,67185.0,67184.0,1.243674]
[1729642936450,0.0004,67186.0,67184.0,1.18411]
[1729642936652,0.0004,67186.0,67185.0,0.712683]
[1729642938144,0.0004,67187.0,67186.0,0.059563]
[1729642938351,0.0004,67189.0,67188.0,0.059561]
[1729642938644,0.0004,67189.0,67186.0,0.61403905]
[1729642938645,0.0004,67193.0,67187.0,0.44652]
[1729642938852,0.0004,67193.0,67192.0,0.059557]
[1729642939250,0.0004,67196.0,67193.0,0.059556]
[1729642939455,0.0004,67196.0,67193.0,0.44648]
[1729642940156,0.0004,67196.0,67193.0,0.506036]
[1729642940561,0.0004,67196.0,67195.0,0.059555]
[1729642940764,0.0004,67196.0,67195.0,0.229555]
[1729642940957,0.0004,67196.0,67195.0,0.675995]
[1729642942957,0.0004,67196.0,67195.0,1.036795]
[1729642943461,0.0004,67196.0,67195.0,1.11108582]
[1729642943862,0.059954,67196.0,67195.0,0.43509082]
[1729642944565,0.059954,67196.0,67195.0,0.49451239]
[1729642945058,0.059954,67196.0,67195.0,0.42022157]
[1729642945853,0.059954,67196.0,67195.0,0.3608]
[1729642946062,0.059954,67196.0,67195.0,0.40536586]
[1729642946063,0.177554,67196.0,67195.0,0.40536586]
[1729642946266,0.177554,67196.0,67195.0,0.57536586]
[1729642947164,0.177554,67196.0,67195.0,0.40536586]
[1729642947754,0.177554,67196.0,67188.0,0.05942157]
[1729642947755,0.059555,67194.0,67188.0,0.05942157]
[1729642947959,0.059563,67185.0,67184.0,0.05981157]
[1729642948154,0.177563,67185.0,67184.0,0.00039]
[1729642951869,0.20431384,67185.0,67184.0,0.00039]
[1729642954966,0.229963,67185.0,67184.0,0.00039]
[1729642955368,0.25668163,67185.0,67184.0,0.00039]
[1729642956163,0.08668163,67185.0,67184.0,0.00039]
[1729642959069,0.19960163,67185.0,67184.0,0.00039]